[Event "*** Titled Tuesday 3|2 Blitz (Early)"]
[Site "Chess.com"]
[Date "2016.12.06"]
[Round "1"]
[White "JohanSalomon"]
[Black "akinov-akinseye"]
[Result "1-0"]
[WhiteElo "2398"]
[BlackElo "1866"]
[TimeControl "180+2"]
[EndTime "11:02:01 PST"]
[Termination "JohanSalomon won by checkmate"]

1. Nf3 {[%clk 0:02:56.5]} 1... f5 {[%clk 0:02:57.9]} 2. d3 {[%clk 0:02:56.2]}
2... e6 {[%clk 0:02:59]} 3. e4 {[%clk 0:02:57.1]} 3... fxe4 {[%clk 0:02:58.6]}
4. dxe4 {[%clk 0:02:59]} 4... Nf6 {[%clk 0:02:59.4]} 5. e5 {[%clk 0:02:55]} 5...
Nd5 {[%clk 0:02:58.5]} 6. c4 {[%clk 0:02:55.9]} 6... Ne7 {[%clk 0:02:57.3]} 7.
Bd3 {[%clk 0:02:54.7]} 7... Nec6 {[%clk 0:02:53.6]} 8. O-O {[%clk 0:02:54.1]}
8... Bc5 {[%clk 0:02:52.8]} 9. Qe2 {[%clk 0:02:45.8]} 9... O-O {[%clk
0:02:52.4]} 10. Nc3 {[%clk 0:02:46.2]} 10... Nd4 {[%clk 0:02:42.3]} 11. Nxd4
{[%clk 0:02:44.4]} 11... Bxd4 {[%clk 0:02:43]} 12. Qe4 {[%clk 0:02:43.8]} 12...
Bxc3 {[%clk 0:02:40.5]} 13. Qxh7+ {[%clk 0:02:44.5]} 13... Kf7 {[%clk
0:02:41.5]} 14. Bg6+ {[%clk 0:02:45.9]} 14... Ke7 {[%clk 0:02:40.5]} 15. Qxg7+
{[%clk 0:02:46.1]} 15... Rf7 {[%clk 0:02:39.8]} 16. Qxf7# {[%clk 0:02:46.2]} 1-0

[Event "*** Titled Tuesday 3|2 Blitz (Early)"]
[Site "Chess.com"]
[Date "2016.12.06"]
[Round "1"]
[White "kikydu96"]
[Black "DanielNaroditsky"]
[Result "0-1"]
[WhiteElo "2336"]
[BlackElo "2692"]
[TimeControl "180+2"]
[EndTime "11:03:28 PST"]
[Termination "DanielNaroditsky won by resignation"]

1. e4 {[%clk 0:03:00.4]} 1... e5 {[%clk 0:03:00.5]} 2. Nf3 {[%clk 0:03:00.7]}
2... Nc6 {[%clk 0:03:01.8]} 3. Bc4 {[%clk 0:02:58.1]} 3... Bc5 {[%clk
0:03:02.5]} 4. c3 {[%clk 0:02:58.9]} 4... Nf6 {[%clk 0:03:03.7]} 5. d3 {[%clk
0:02:58.8]} 5... a6 {[%clk 0:03:02.9]} 6. Bb3 {[%clk 0:02:59.1]} 6... Ba7 {[%clk
0:03:02.6]} 7. h3 {[%clk 0:02:56]} 7... d6 {[%clk 0:03:03.4]} 8. Nbd2 {[%clk
0:02:56.8]} 8... O-O {[%clk 0:03:02.3]} 9. O-O {[%clk 0:02:57.2]} 9... Ne7
{[%clk 0:03:03.2]} 10. Re1 {[%clk 0:02:56.1]} 10... Ng6 {[%clk 0:03:04.6]} 11.
Nf1 {[%clk 0:02:57.1]} 11... b5 {[%clk 0:02:54.2]} 12. Be3 {[%clk 0:02:55.9]}
12... c5 {[%clk 0:02:43.8]} 13. Ng3 {[%clk 0:02:52.8]} 13... Bb7 {[%clk
0:02:45]} 14. Nh2 {[%clk 0:02:26.3]} 14... d5 {[%clk 0:02:24.9]} 15. exd5 {[%clk
0:02:23.6]} 15... Nxd5 {[%clk 0:02:25]} 16. Bd2 {[%clk 0:02:14.5]} 16... Ndf4
{[%clk 0:02:26.1]} 17. Bxf4 {[%clk 0:01:50.4]} 17... Nxf4 {[%clk 0:02:26.4]} 18.
Nf3 {[%clk 0:01:48.7]} 18... Nxd3 {[%clk 0:02:25.9]} 19. Re3 {[%clk 0:01:48.2]}
19... c4 {[%clk 0:02:27.2]} 20. Bc2 {[%clk 0:01:48.2]} 20... Bxe3 {[%clk
0:02:26.8]} 0-1

[Event "*** Titled Tuesday 3|2 Blitz (Early)"]
[Site "Chess.com"]
[Date "2016.12.06"]
[Round "1"]
[White "Peroncio"]
[Black "josiwales"]
[Result "1-0"]
[WhiteElo "2521"]
[BlackElo "2224"]
[TimeControl "180+2"]
[EndTime "11:03:59 PST"]
[Termination "Peroncio won by resignation"]

1. d4 {[%clk 0:03:02]} 1... e6 {[%clk 0:02:57.3]} 2. c4 {[%clk 0:03:02.5]} 2...
d6 {[%clk 0:02:58.8]} 3. Nc3 {[%clk 0:03:03.5]} 3... Ne7 {[%clk 0:02:55.5]} 4.
e4 {[%clk 0:03:04]} 4... g6 {[%clk 0:02:54.1]} 5. Be3 {[%clk 0:03:04.6]} 5...
Bg7 {[%clk 0:02:55.4]} 6. Qd2 {[%clk 0:03:05.9]} 6... h5 {[%clk 0:02:54.8]} 7.
Nf3 {[%clk 0:03:06.1]} 7... c6 {[%clk 0:02:46.8]} 8. Be2 {[%clk 0:03:06]} 8...
d5 {[%clk 0:02:42.8]} 9. O-O {[%clk 0:03:07.1]} 9... O-O {[%clk 0:02:39]} 10.
Bh6 {[%clk 0:03:05.9]} 10... dxe4 {[%clk 0:02:34.1]} 11. Nxe4 {[%clk 0:03:05.2]}
11... Nf5 {[%clk 0:02:35.2]} 12. Bxg7 {[%clk 0:03:05.4]} 12... Kxg7 {[%clk
0:02:37.1]} 13. Rad1 {[%clk 0:03:03.8]} 13... Qe7 {[%clk 0:02:36.1]} 14. Qc3
{[%clk 0:03:04.6]} 14... f6 {[%clk 0:02:32.8]} 15. Rfe1 {[%clk 0:03:05.7]} 15...
Na6 {[%clk 0:02:19.7]} 16. a3 {[%clk 0:03:06.1]} 16... b6 {[%clk 0:02:17.9]} 17.
h3 {[%clk 0:02:58.6]} 17... Bb7 {[%clk 0:02:10.1]} 18. g4 {[%clk 0:02:58.6]}
18... hxg4 {[%clk 0:02:09.1]} 19. hxg4 {[%clk 0:03:00.5]} 19... Nh6 {[%clk
0:02:10.3]} 20. g5 {[%clk 0:03:02]} 20... fxg5 {[%clk 0:02:08.6]} 21. d5+ {[%clk
0:03:00]} 21... Kg8 {[%clk 0:02:09.5]} 22. d6 {[%clk 0:02:55.8]} 22... Qd8
{[%clk 0:02:10.3]} 23. Nfxg5 {[%clk 0:02:54.1]} 23... Bc8 {[%clk 0:01:56.1]} 24.
Kg2 {[%clk 0:02:43]} 24... Nf5 {[%clk 0:01:48.4]} 25. Rh1 {[%clk 0:02:42.9]}
25... Ng7 {[%clk 0:01:44.4]} 26. Rh7 {[%clk 0:02:38.8]} 1-0

[Event "*** Titled Tuesday 3|2 Blitz (Early)"]
[Site "Chess.com"]
[Date "2016.12.06"]
[Round "1"]
[White "Keaton87"]
[Black "saraswathii"]
[Result "1-0"]
[WhiteElo "2474"]
[BlackElo "2184"]
[TimeControl "180+2"]
[EndTime "11:04:18 PST"]
[Termination "Keaton87 won by resignation"]

1. e4 {[%clk 0:03:01.9]} 1... c5 {[%clk 0:02:56.9]} 2. Nf3 {[%clk 0:03:02.5]}
2... e6 {[%clk 0:02:57.5]} 3. d4 {[%clk 0:03:02.3]} 3... cxd4 {[%clk 0:02:57.3]}
4. Nxd4 {[%clk 0:03:04.2]} 4... Nf6 {[%clk 0:02:58.3]} 5. Nc3 {[%clk 0:03:04.2]}
5... Nc6 {[%clk 0:02:58.3]} 6. Nxc6 {[%clk 0:03:04.8]} 6... bxc6 {[%clk
0:02:59.1]} 7. e5 {[%clk 0:03:06.3]} 7... Nd5 {[%clk 0:03:00.3]} 8. Ne4 {[%clk
0:03:07.5]} 8... f5 {[%clk 0:03:00.9]} 9. exf6 {[%clk 0:03:00.2]} 9... Nxf6
{[%clk 0:03:01.7]} 10. Bd3 {[%clk 0:02:57.1]} 10... d5 {[%clk 0:02:59.7]} 11.
Ng5 {[%clk 0:02:46.6]} 11... Bd6 {[%clk 0:02:16.2]} 12. O-O {[%clk 0:02:28.2]}
12... O-O {[%clk 0:02:12]} 13. f4 {[%clk 0:02:29.4]} 13... h6 {[%clk 0:02:05.4]}
14. Nf3 {[%clk 0:02:30.2]} 14... Qb6+ {[%clk 0:02:05.8]} 15. Kh1 {[%clk
0:02:30.8]} 15... Ng4 {[%clk 0:02:06.9]} 16. Qe2 {[%clk 0:02:21.1]} 16... Bxf4
{[%clk 0:02:07.6]} 17. Bxf4 {[%clk 0:02:20.2]} 17... Rxf4 {[%clk 0:02:08]} 18.
h3 {[%clk 0:02:16.5]} 18... Nf6 {[%clk 0:02:01.8]} 19. Ne5 {[%clk 0:02:17.1]}
19... Ne4 {[%clk 0:01:54.8]} 20. Bxe4 {[%clk 0:02:08.4]} 20... Rxe4 {[%clk
0:01:55.5]} 21. Qh5 {[%clk 0:02:08.2]} 21... Qc7 {[%clk 0:01:50.1]} 22. Qe8+
{[%clk 0:02:06.8]} 22... Kh7 {[%clk 0:01:48.7]} 23. Rf8 {[%clk 0:02:07.4]} 1-0

[Event "*** Titled Tuesday 3|2 Blitz (Early)"]
[Site "Chess.com"]
[Date "2016.12.06"]
[Round "1"]
[White "Iball95"]
[Black "Nachsueb"]
[Result "1-0"]
[WhiteElo "2477"]
[BlackElo "2163"]
[TimeControl "180+2"]
[EndTime "11:04:23 PST"]
[Termination "Iball95 won by resignation"]

1. e4 {[%clk 0:02:55.3]} 1... c5 {[%clk 0:02:59]} 2. Nf3 {[%clk 0:02:55.2]} 2...
e6 {[%clk 0:03:00.2]} 3. g3 {[%clk 0:02:55]} 3... a6 {[%clk 0:02:56.2]} 4. Bg2
{[%clk 0:02:55.7]} 4... g6 {[%clk 0:02:57.7]} 5. d4 {[%clk 0:02:55]} 5... cxd4
{[%clk 0:02:57.8]} 6. Nxd4 {[%clk 0:02:56.9]} 6... Bg7 {[%clk 0:02:57.9]} 7. O-O
{[%clk 0:02:55.1]} 7... Ne7 {[%clk 0:02:58.7]} 8. Nc3 {[%clk 0:02:45.6]} 8...
Nbc6 {[%clk 0:02:59.1]} 9. Nxc6 {[%clk 0:02:46.8]} 9... bxc6 {[%clk 0:02:57.9]}
10. Qd6 {[%clk 0:02:46.7]} 10... O-O {[%clk 0:02:50.5]} 11. Bg5 {[%clk
0:02:45.7]} 11... f6 {[%clk 0:02:50]} 12. Be3 {[%clk 0:02:46]} 12... Bb7 {[%clk
0:02:35]} 13. Rad1 {[%clk 0:02:43.9]} 13... Bc8 {[%clk 0:02:12.7]} 14. Na4
{[%clk 0:02:37.9]} 14... c5 {[%clk 0:01:19.4]} 15. Nxc5 {[%clk 0:02:21.1]} 15...
Nc6 {[%clk 0:01:18.4]} 16. Nxe6 {[%clk 0:02:11.2]} 1-0

[Event "*** Titled Tuesday 3|2 Blitz (Early)"]
[Site "Chess.com"]
[Date "2016.12.06"]
[Round "1"]
[White "poummba"]
[Black "Abdodi"]
[Result "1-0"]
[WhiteElo "2410"]
[BlackElo "2008"]
[TimeControl "180+2"]
[EndTime "11:04:55 PST"]
[Termination "poummba won by resignation"]

1. e4 {[%clk 0:03:02]} 1... c6 {[%clk 0:03:01.1]} 2. d4 {[%clk 0:03:01.6]} 2...
d5 {[%clk 0:03:03]} 3. Nc3 {[%clk 0:03:03.2]} 3... dxe4 {[%clk 0:03:03.7]} 4.
Nxe4 {[%clk 0:03:04.5]} 4... Bf5 {[%clk 0:03:05.4]} 5. Ng3 {[%clk 0:03:05.9]}
5... Bg6 {[%clk 0:03:06.6]} 6. h4 {[%clk 0:03:07.6]} 6... h6 {[%clk 0:03:07.4]}
7. Nh3 {[%clk 0:03:09.1]} 7... Nf6 {[%clk 0:03:04.6]} 8. Nf4 {[%clk 0:03:10]}
8... Bh7 {[%clk 0:03:05.7]} 9. Bc4 {[%clk 0:03:11.6]} 9... e6 {[%clk 0:03:06.6]}
10. O-O {[%clk 0:03:12.3]} 10... Bd6 {[%clk 0:03:03.7]} 11. Ngh5 {[%clk
0:03:13.1]} 11... O-O {[%clk 0:02:53.8]} 12. Re1 {[%clk 0:03:11.5]} 12... Nd5
{[%clk 0:02:46.6]} 13. Qg4 {[%clk 0:03:02.5]} 13... g6 {[%clk 0:02:31.4]} 14.
Bd3 {[%clk 0:02:54.6]} 14... Nxf4 {[%clk 0:02:27.7]} 15. Nxf4 {[%clk 0:02:52]}
15... Bxf4 {[%clk 0:02:28]} 16. Qxf4 {[%clk 0:02:44.2]} 16... h5 {[%clk
0:02:20.8]} 17. b3 {[%clk 0:02:32.2]} 17... Nd7 {[%clk 0:02:19.8]} 18. Bb2
{[%clk 0:02:31.2]} 18... Nb6 {[%clk 0:02:04.6]} 19. c4 {[%clk 0:02:31.5]} 19...
Qb8 {[%clk 0:01:45.1]} 20. Qh6 {[%clk 0:02:25.5]} 20... Qe8 {[%clk 0:01:41.3]}
21. d5 {[%clk 0:02:24.5]} 21... f6 {[%clk 0:01:42.4]} 22. Rxe6 {[%clk
0:02:23.3]} 22... Qd7 {[%clk 0:01:29.3]} 23. Rae1 {[%clk 0:02:18.2]} 23... Rf7
{[%clk 0:01:25.8]} 24. Bxg6 {[%clk 0:02:17.5]} 24... Bxg6 {[%clk 0:01:26.1]} 25.
Qxg6+ {[%clk 0:02:18.7]} 25... Rg7 {[%clk 0:01:27.3]} 26. Re8+ {[%clk
0:02:17.5]} 26... Rxe8 {[%clk 0:01:27.3]} 27. Rxe8+ {[%clk 0:02:18.4]} 27...
Qxe8 {[%clk 0:01:26.1]} 28. Qxe8+ {[%clk 0:02:19.6]} 28... Kh7 {[%clk
0:01:27.5]} 29. Bxf6 {[%clk 0:02:19.1]} 29... Rg6 {[%clk 0:01:22.1]} 30. Qf7+
{[%clk 0:02:19.5]} 30... Kh6 {[%clk 0:01:22.1]} 31. Bg5+ {[%clk 0:02:20.2]}
31... Rxg5 {[%clk 0:01:22.6]} 32. hxg5+ {[%clk 0:02:22.1]} 32... Kxg5 {[%clk
0:01:24.3]} 33. d6 {[%clk 0:02:23.4]} 1-0

[Event "*** Titled Tuesday 3|2 Blitz (Early)"]
[Site "Chess.com"]
[Date "2016.12.06"]
[Round "1"]
[White "Holden-Caulfield"]
[Black "Makalexa"]
[Result "1-0"]
[WhiteElo "2480"]
[BlackElo "2198"]
[TimeControl "180+2"]
[EndTime "11:04:56 PST"]
[Termination "Holden-Caulfield won on time"]

1. d4 {[%clk 0:03:01.3]} 1... Nf6 {[%clk 0:02:59.8]} 2. Nf3 {[%clk 0:02:59.8]}
2... g6 {[%clk 0:02:59.9]} 3. Bf4 {[%clk 0:03:00.5]} 3... Bg7 {[%clk 0:03:01.4]}
4. e3 {[%clk 0:03:00.8]} 4... d6 {[%clk 0:03:02.2]} 5. h3 {[%clk 0:03:01.6]}
5... O-O {[%clk 0:03:03.7]} 6. Be2 {[%clk 0:03:02.6]} 6... Nfd7 {[%clk
0:03:04.6]} 7. c3 {[%clk 0:03:03.3]} 7... e5 {[%clk 0:03:05.4]} 8. dxe5 {[%clk
0:03:04.6]} 8... dxe5 {[%clk 0:03:05.9]} 9. Bh2 {[%clk 0:03:05.7]} 9... Nc6
{[%clk 0:03:04.6]} 10. Nbd2 {[%clk 0:03:06.7]} 10... f5 {[%clk 0:03:02]} 11. O-O
{[%clk 0:03:07.7]} 11... e4 {[%clk 0:03:01.1]} 12. Nd4 {[%clk 0:03:08.5]} 12...
Nde5 {[%clk 0:03:00.9]} 13. Nc4 {[%clk 0:03:07.6]} 13... Kh8 {[%clk 0:02:58.7]}
14. Nxc6 {[%clk 0:03:04.8]} 14... Nxc6 {[%clk 0:02:26.1]} 15. Qxd8 {[%clk
0:02:59]} 15... Rxd8 {[%clk 0:02:27.1]} 16. Bxc7 {[%clk 0:03:00]} 16... Rd5
{[%clk 0:02:23.2]} 17. Rad1 {[%clk 0:02:57.7]} 17... Be6 {[%clk 0:02:24.2]} 18.
Rxd5 {[%clk 0:02:52.5]} 18... Bxd5 {[%clk 0:02:25]} 19. Rd1 {[%clk 0:02:53.6]}
19... Be6 {[%clk 0:02:23.4]} 20. Bg3 {[%clk 0:02:51.1]} 20... Rd8 {[%clk
0:02:19.9]} 21. Rxd8+ {[%clk 0:02:50.8]} 1-0

[Event "*** Titled Tuesday 3|2 Blitz (Early)"]
[Site "Chess.com"]
[Date "2016.12.06"]
[Round "1"]
[White "E-Shaposhnikov"]
[Black "162a54f5d"]
[Result "1-0"]
[WhiteElo "2707"]
[BlackElo "2363"]
[TimeControl "180+2"]
[EndTime "11:05:00 PST"]
[Termination "E-Shaposhnikov won on time"]

1. Nf3 {[%clk 0:02:50.2]} 1... d6 {[%clk 0:02:55.3]} 2. d4 {[%clk 0:02:46.5]}
2... Bg4 {[%clk 0:02:52]} 3. e4 {[%clk 0:02:46.1]} 3... Nf6 {[%clk 0:02:49.6]}
4. Nc3 {[%clk 0:02:46]} 4... c6 {[%clk 0:02:50.7]} 5. h3 {[%clk 0:02:45.5]} 5...
Bh5 {[%clk 0:02:51]} 6. Be3 {[%clk 0:02:45.3]} 6... e6 {[%clk 0:02:51.9]} 7. Be2
{[%clk 0:02:43.1]} 7... d5 {[%clk 0:02:52.9]} 8. e5 {[%clk 0:02:38.7]} 8... Nfd7
{[%clk 0:02:53.5]} 9. Nd2 {[%clk 0:02:31.9]} 9... Bxe2 {[%clk 0:02:52.9]} 10.
Nxe2 {[%clk 0:02:32.3]} 10... c5 {[%clk 0:02:53.2]} 11. c3 {[%clk 0:02:28.3]}
11... Nc6 {[%clk 0:02:54.2]} 12. O-O {[%clk 0:02:28.4]} 12... Be7 {[%clk
0:02:54.3]} 13. Ng3 {[%clk 0:02:27.3]} 13... O-O {[%clk 0:02:45.4]} 14. Qg4
{[%clk 0:02:10.4]} 1-0

[Event "*** Titled Tuesday 3|2 Blitz (Early)"]
[Site "Chess.com"]
[Date "2016.12.06"]
[Round "1"]
[White "VladDobrov"]
[Black "WanderingPuppet"]
[Result "1-0"]
[WhiteElo "2611"]
[BlackElo "2309"]
[TimeControl "180+2"]
[EndTime "11:05:14 PST"]
[Termination "VladDobrov won by resignation"]

1. d4 {[%clk 0:03:01.9]} 1... Nf6 {[%clk 0:03:00.2]} 2. c4 {[%clk 0:03:03.2]}
2... g6 {[%clk 0:03:01.6]} 3. Nc3 {[%clk 0:03:03]} 3... Bg7 {[%clk 0:03:03.1]}
4. e4 {[%clk 0:03:03.7]} 4... O-O {[%clk 0:03:04.7]} 5. Nge2 {[%clk 0:03:04.4]}
5... d6 {[%clk 0:03:05.8]} 6. Ng3 {[%clk 0:03:05]} 6... c5 {[%clk 0:03:07.3]} 7.
d5 {[%clk 0:03:04.5]} 7... e6 {[%clk 0:03:08.6]} 8. Be2 {[%clk 0:03:03.6]} 8...
exd5 {[%clk 0:03:09.8]} 9. exd5 {[%clk 0:03:04.2]} 9... Nbd7 {[%clk 0:03:10.5]}
10. O-O {[%clk 0:03:03.9]} 10... a6 {[%clk 0:03:11.8]} 11. a4 {[%clk 0:03:03.6]}
11... Re8 {[%clk 0:03:10.9]} 12. Bf4 {[%clk 0:02:58.7]} 12... Ne5 {[%clk
0:03:07.8]} 13. Qd2 {[%clk 0:02:56.5]} 13... h5 {[%clk 0:03:08.1]} 14. Bg5
{[%clk 0:02:52.7]} 14... Qe7 {[%clk 0:03:04.1]} 15. Rae1 {[%clk 0:02:50]} 15...
Qf8 {[%clk 0:03:03.2]} 16. f4 {[%clk 0:02:47]} 16... Neg4 {[%clk 0:02:58.9]} 17.
Bf3 {[%clk 0:02:47.3]} 17... Nh7 {[%clk 0:02:51.9]} 18. Rxe8 {[%clk 0:02:35.3]}
18... Qxe8 {[%clk 0:02:53.8]} 19. Bxg4 {[%clk 0:02:29.1]} 19... Nxg5 {[%clk
0:02:37.5]} 20. Re1 {[%clk 0:02:26.1]} 20... Qd8 {[%clk 0:02:21.2]} 21. Bxc8
{[%clk 0:02:25.8]} 21... Nf3+ {[%clk 0:02:08.2]} 22. gxf3 {[%clk 0:02:26]} 22...
Rxc8 {[%clk 0:02:09.2]} 23. Kg2 {[%clk 0:02:22]} 23... h4 {[%clk 0:02:08]} 24.
Nge4 {[%clk 0:02:22.7]} 24... h3+ {[%clk 0:02:02.9]} 25. Kxh3 {[%clk 0:02:21.1]}
25... Qd7+ {[%clk 0:02:00.9]} 26. Kg2 {[%clk 0:02:21.9]} 26... Bd4 {[%clk
0:01:58.8]} 27. Qxd4 {[%clk 0:01:57.2]} 27... cxd4 {[%clk 0:02:00.7]} 28. Nf6+
{[%clk 0:01:58]} 28... Kg7 {[%clk 0:02:02.2]} 29. Nxd7 {[%clk 0:01:59.4]} 29...
dxc3 {[%clk 0:02:03.5]} 30. Nb6 {[%clk 0:02:00.9]} 30... Rc7 {[%clk 0:01:46.8]}
31. b4 {[%clk 0:02:00.3]} 31... a5 {[%clk 0:01:48.7]} 32. b5 {[%clk 0:01:52.7]}
32... Kf6 {[%clk 0:01:46]} 33. Rc1 {[%clk 0:01:52.2]} 33... Re7 {[%clk 0:01:47]}
34. Kf2 {[%clk 0:01:52]} 34... Kf5 {[%clk 0:01:46.9]} 35. Rxc3 {[%clk
0:01:52.6]} 35... Kxf4 {[%clk 0:01:48.4]} 36. c5 {[%clk 0:01:54]} 1-0

[Event "*** Titled Tuesday 3|2 Blitz (Early)"]
[Site "Chess.com"]
[Date "2016.12.06"]
[Round "1"]
[White "jcibarra"]
[Black "Lector118"]
[Result "1-0"]
[WhiteElo "2655"]
[BlackElo "2334"]
[TimeControl "180+2"]
[EndTime "11:05:26 PST"]
[Termination "jcibarra won by resignation"]

1. e4 {[%clk 0:03:02]} 1... c5 {[%clk 0:02:57.3]} 2. Nf3 {[%clk 0:03:00.5]} 2...
d6 {[%clk 0:02:58.5]} 3. d4 {[%clk 0:03:01.8]} 3... cxd4 {[%clk 0:03:00.4]} 4.
Nxd4 {[%clk 0:03:03.7]} 4... Nf6 {[%clk 0:03:02.1]} 5. Nc3 {[%clk 0:03:05.1]}
5... Nc6 {[%clk 0:03:03.9]} 6. Bg5 {[%clk 0:03:05.8]} 6... e6 {[%clk 0:03:05.3]}
7. Qd2 {[%clk 0:03:06.9]} 7... Be7 {[%clk 0:03:06.6]} 8. O-O-O {[%clk
0:03:08.2]} 8... Nxd4 {[%clk 0:03:08.2]} 9. Qxd4 {[%clk 0:03:08.8]} 9... O-O
{[%clk 0:03:10.1]} 10. f4 {[%clk 0:03:09.7]} 10... h6 {[%clk 0:03:11.3]} 11. h4
{[%clk 0:03:10.5]} 11... a6 {[%clk 0:03:02.9]} 12. Bc4 {[%clk 0:03:07.9]} 12...
b5 {[%clk 0:03:01.6]} 13. Bb3 {[%clk 0:03:09.1]} 13... Bb7 {[%clk 0:02:59.7]}
14. Qe3 {[%clk 0:03:09.1]} 14... Rc8 {[%clk 0:02:45]} 15. e5 {[%clk 0:03:08.4]}
15... Ng4 {[%clk 0:02:42.8]} 16. Qg3 {[%clk 0:03:07.8]} 16... h5 {[%clk
0:02:10.7]} 17. Rxd6 {[%clk 0:03:02]} 17... Qc7 {[%clk 0:02:10.3]} 18. Bxe7
{[%clk 0:03:01.1]} 18... Qxe7 {[%clk 0:02:12.2]} 19. a3 {[%clk 0:02:56.4]} 19...
Rc7 {[%clk 0:02:12.7]} 20. Rhd1 {[%clk 0:02:55.7]} 20... g6 {[%clk 0:02:09.5]}
21. Kb1 {[%clk 0:02:47.2]} 21... Bc6 {[%clk 0:02:08.8]} 22. Ne2 {[%clk
0:02:45.1]} 22... Be4 {[%clk 0:02:05.5]} 23. Nd4 {[%clk 0:02:44.6]} 23... Bf5
{[%clk 0:01:43.9]} 24. Rxa6 {[%clk 0:02:30.4]} 24... Rd8 {[%clk 0:01:40.1]} 25.
Ka2 {[%clk 0:02:21.3]} 25... Rdc8 {[%clk 0:01:34.8]} 26. Nxf5 {[%clk 0:02:20]}
26... gxf5 {[%clk 0:01:35.3]} 27. c3 {[%clk 0:02:16.8]} 27... Kg7 {[%clk
0:01:36]} 28. Rdd6 {[%clk 0:02:17]} 28... Rd7 {[%clk 0:01:31.2]} 29. Rxd7 {[%clk
0:02:14]} 29... Qxd7 {[%clk 0:01:31.5]} 30. Rd6 {[%clk 0:02:15.7]} 30... Qb7
{[%clk 0:01:29.8]} 31. Qf3 {[%clk 0:02:15]} 31... Qa7 {[%clk 0:01:25.3]} 32. Qd3
{[%clk 0:02:09.2]} 32... Qf2 {[%clk 0:01:21.7]} 33. g3 {[%clk 0:02:10.5]} 33...
Qa7 {[%clk 0:01:18.6]} 34. Bxe6 {[%clk 0:02:09.5]} 1-0

[Event "*** Titled Tuesday 3|2 Blitz (Early)"]
[Site "Chess.com"]
[Date "2016.12.06"]
[Round "1"]
[White "RamonManon0g"]
[Black "Tesla37"]
[Result "0-1"]
[WhiteElo "2298"]
[BlackElo "2592"]
[TimeControl "180+2"]
[EndTime "11:05:36 PST"]
[Termination "Tesla37 won by resignation"]

1. d4 {[%clk 0:03:02]} 1... Nf6 {[%clk 0:02:59.9]} 2. c4 {[%clk 0:03:03.3]} 2...
g6 {[%clk 0:03:01.1]} 3. Nc3 {[%clk 0:03:04.6]} 3... Bg7 {[%clk 0:03:02.3]} 4.
e4 {[%clk 0:03:05.9]} 4... O-O {[%clk 0:03:03.4]} 5. Nf3 {[%clk 0:03:07.3]} 5...
d6 {[%clk 0:03:03.8]} 6. Be2 {[%clk 0:03:08.8]} 6... e5 {[%clk 0:03:04.4]} 7.
O-O {[%clk 0:03:09.7]} 7... Nbd7 {[%clk 0:03:05.2]} 8. h3 {[%clk 0:03:06.6]}
8... c6 {[%clk 0:03:03.9]} 9. Be3 {[%clk 0:03:07.2]} 9... Qe7 {[%clk 0:03:01.6]}
10. dxe5 {[%clk 0:03:04.4]} 10... dxe5 {[%clk 0:03:01.9]} 11. Qd2 {[%clk
0:03:05.4]} 11... Nc5 {[%clk 0:02:59.9]} 12. Qc2 {[%clk 0:02:48.7]} 12... Nh5
{[%clk 0:02:59.2]} 13. Bg5 {[%clk 0:02:35]} 13... Qc7 {[%clk 0:02:55.7]} 14. Qd2
{[%clk 0:02:16.1]} 14... Nf4 {[%clk 0:02:28.5]} 15. Rad1 {[%clk 0:02:08.8]}
15... Nce6 {[%clk 0:02:27.8]} 16. Bh4 {[%clk 0:02:00.2]} 16... f6 {[%clk
0:02:21.9]} 17. Qd6 {[%clk 0:01:41.2]} 17... Qb6 {[%clk 0:02:04.8]} 18. b3
{[%clk 0:01:30.5]} 18... Qa5 {[%clk 0:02:03.2]} 19. Qd2 {[%clk 0:01:24.5]} 19...
Qxc3 {[%clk 0:02:01.8]} 20. Qxc3 {[%clk 0:01:17.4]} 20... Nxe2+ {[%clk
0:02:01.5]} 21. Kh1 {[%clk 0:01:19.3]} 21... Nxc3 {[%clk 0:02:02.5]} 22. Rd2
{[%clk 0:01:15.1]} 22... Nxe4 {[%clk 0:02:03]} 23. Re2 {[%clk 0:01:13.1]} 23...
N4c5 {[%clk 0:01:58.6]} 24. Rd1 {[%clk 0:01:08.2]} 24... Nf4 {[%clk 0:01:51.5]}
25. Red2 {[%clk 0:01:05.8]} 25... Bf5 {[%clk 0:01:50.7]} 26. Bg3 {[%clk
0:00:53]} 26... Ne4 {[%clk 0:01:50.6]} 27. Rc2 {[%clk 0:00:46.8]} 27... Nxg3+
{[%clk 0:01:50.9]} 28. fxg3 {[%clk 0:00:47.6]} 28... Bxc2 {[%clk 0:01:52.4]} 0-1